bitfinex/quotes_ETHUSD_20250219
["timestamp","ask_amount","ask_price","bid_price","bid_amount"]
[1739953210235,4.47798,2717.7,2717.6,0.37589585]
[1739953210434,5.53624865,2717.7,2717.6,0.23508822]
[1739953211432,6.08624865,2717.7,2717.6,0.23508822]
[1739953211643,6.08624865,2717.7,2717.0,0.7764]
[1739953211880,3.67972,2717.6,2717.1,0.03680244]
[1739953212083,7.35953,2717.6,2717.0,4.45692]
[1739953212582,4.48339,2718.2,2717.1,0.86800026]
[1739953212742,4.48339,2718.2,2717.6,0.8312]
[1739953212948,3.67913,2718.1,2717.6,0.8312]
[1739953213145,3.67899,2718.2,2717.6,0.8312]
[1739953213344,3.67905,2718.1,2717.6,0.8312]
[1739953213951,3.67934,2717.9,2717.6,0.8312]
[1739953215139,3.67934,2717.9,2717.4,0.54716236]
[1739953215140,3.67945,2717.8,2717.4,1.35986236]
[1739953215380,4.45525,2717.8,2717.4,1.35986236]
[1739953215688,0.7758,2717.8,2717.4,1.35986236]
[1739953216280,0.7758,2717.8,2717.5,0.34201794]
[1739953216653,3.6791,2718.1,2717.5,4.02184794]
[1739953216654,4.4905,2718.1,2717.5,4.02184794]
[1739953216994,8.16965,2718.1,2717.5,0.34201794]
[1739953217355,7.9955,2718.3,2717.6,1.06315665]
[1739953217551,11.67434,2718.3,2717.6,4.74273665]
[1739953217863,3.0,2718.3,2717.6,1.09995193]
[1739953218066,3.0,2718.3,2717.9,4.4331]
[1739953218268,3.67851,2718.5,2717.9,5.244347]
[1739953218463,3.67851,2718.5,2717.9,1.565047]
[1739953218464,3.67867,2718.4,2717.9,1.565047]
[1739953218669,3.67851,2718.5,2717.9,1.565047]
[1739953218864,4.47048,2718.7,2717.9,0.7538]
[1739953219093,3.67839,2718.6,2718.1,0.7946]
[1739953220194,8.1488,2718.7,2718.1,0.7946]
[1739953220401,3.67837,2718.6,2718.1,0.7946]
[1739953220957,3.67837,2718.6,2718.1,4.47363]
[1739953221158,3.87050415,2718.6,2718.1,4.47363]
[1739953221693,0.19213415,2718.6,2718.1,4.47363]
[1739953221894,0.19213415,2718.6,2718.3,3.67869]
[1739953222195,0.19213415,2718.6,2718.4,0.7957]
[1739953222774,3.67857,2718.5,2718.2,0.82]
[1739953223300,0.19213415,2718.6,2718.2,0.82]
[1739953223899,3.87051415,2718.6,2718.2,0.82]
[1739953224453,0.19213415,2718.6,2718.2,0.82]
[1739953224659,0.19213415,2718.6,2718.2,4.4988]
[1739953224858,0.19213415,2718.6,2718.2,0.82]
[1739953225168,0.19213415,2718.6,2718.2,4.49886]
[1739953225370,0.19213415,2718.6,2718.3,3.67875]
[1739953225605,6.67803,2718.9,2718.3,3.67869]
[1739953225899,10.54819258,2718.9,2718.3,3.67869]
[1739953226258,6.87015258,2718.9,2718.3,3.67869]
[1739953226784,3.67819,2718.8,2718.3,3.67869]
[1739953227101,10.54820258,2718.9,2718.3,3.67869]
[1739953227299,6.87015258,2718.9,2718.3,3.67869]
[1739953227701,3.67813,2718.8,2718.3,3.67868]
[1739953227889,3.67813,2718.8,2718.4,0.8016]
[1739953228486,3.19212258,2718.9,2718.4,0.8016]
[1739953228665,3.19212258,2718.9,2718.4,4.48022]
[1739953228861,3.67818,2718.8,2718.4,0.8016]
[1739953229062,6.87021258,2718.9,2718.4,0.8016]
[1739953229301,3.67832,2718.7,2718.4,0.8016]
[1739953229756,7.35665,2718.7,2718.4,0.8016]
[1739953229963,0.7901,2718.6,2718.0,0.8229]
[1739953230162,3.6787,2718.4,2718.0,0.8229]
[1739953230604,3.67852,2718.5,2718.0,0.8229]
[1739953230978,4.46855,2718.6,2718.0,0.8229]
[1739953231178,3.67883,2718.3,2718.0,0.8229]
[1739953232903,9.05816,2718.8,2718.1,3.67904]
[1739953233104,3.67823,2718.7,2718.2,4.48423]
[1739953233265,3.67838,2718.6,2718.2,0.8054]
[1739953233598,3.6785,2718.5,2718.2,0.8054]
[1739953234167,3.67872,2718.4,2718.2,0.8054]
[1739953235004,3.67876,2718.3,2718.2,0.8054]
[1739953235160,0.824,2718.5,2717.8,0.7764]
[1739953235365,3.67931,2717.9,2717.8,0.7764]
[1739953235592,3.67931,2717.9,2717.4,0.7551]
[1739953235775,3.67931,2717.9,2717.4,1.761413]
[1739953235987,3.67931,2717.9,2717.5,0.72127013]
[1739953236464,0.8287,2718.1,2717.6,3.67971]
[1739953236698,3.67919,2718.0,2717.5,8.08081013]
[1739953236877,3.67919,2718.0,2717.6,0.8261]
[1739953237402,3.67919,2718.0,2717.6,1.3773383]
[1739953237580,7.35796,2718.2,2717.6,5.0570283]
[1739953237781,3.67905,2718.1,2717.6,5.0570283]
[1739953238000,3.67927,2718.0,2717.6,1.3773383]
[1739953238315,3.67927,2718.0,2717.6,0.8261]
[1739953239166,3.67936,2717.9,2717.6,0.8261]
[1739953239591,3.67927,2718.0,2717.6,0.8261]
[1739953239805,3.67932,2717.9,2717.6,0.8261]
[1739953240410,3.67927,2718.0,2717.6,0.8261]
[1739953240610,3.67931,2717.9,2717.6,0.8261]
[1739953241265,3.67946,2717.8,2717.6,0.8261]
[1739953242382,3.67931,2717.9,2717.6,0.8261]
[1739953243321,3.67927,2718.0,2717.6,0.7761]
[1739953243608,7.35853,2718.0,2717.6,0.7761]
[1739953243814,7.35852,2718.0,2717.6,0.7761]
[1739953243969,7.35853,2718.0,2717.6,0.7761]
[1739953244504,7.35856,2718.0,2717.6,0.7761]
[1739953244808,3.67926,2718.0,2717.6,0.7761]
[1739953245305,3.67939,2717.9,2717.6,0.7761]
[1739953245979,3.67952,2717.8,2717.6,0.7761]
[1739953246182,0.735891,2717.8,2717.3,5.36]
[1739953246398,3.67964,2717.7,2717.3,6.1788]
[1739953246804,3.67954,2717.8,2717.3,9.85882]
[1739953247105,3.67954,2717.8,2717.4,0.23432515]
[1739953247602,3.67919,2718.0,2717.4,0.23432515]
[1739953247807,3.6794,2717.9,2717.4,0.23432515]
[1739953248011,0.7948,2718.3,2717.5,4.442]
[1739953248300,3.6789,2718.2,2717.5,4.442]
[1739953248605,3.67904,2718.1,2717.6,0.7764]
[1739953248818,3.67904,2718.1,2717.7,0.7764]
[1739953249320,0.19200153,2718.4,2717.9,3.67929]
[1739953249473,3.67867,2718.4,2718.0,0.7764]
[1739953249672,3.0,2718.3,2718.0,0.7764]
[1739953250006,3.67867,2718.4,2718.0,0.7764]
[1739953250303,3.67865,2718.4,2718.1,0.445569]
[1739953250873,3.67865,2718.4,2718.0,0.7764]
[1739953251068,3.67852,2718.5,2718.0,4.45557]
[1739953251375,3.67838,2718.6,2718.2,0.751]
[1739953252710,7.35686,2718.6,2718.2,0.751]
[1739953253019,7.35685,2718.6,2718.2,0.751]
[1739953253196,3.67851,2718.5,2718.2,0.751]
[1739953253419,3.67864,2718.4,2718.2,0.751]
[1739953254629,3.67892,2718.2,2717.7,4.50537]
[1739953254791,3.6787,2718.4,2717.6,0.8258]
[1739953254995,3.6784,2718.6,2718.0,4.50496]
[1739953255229,3.6785,2718.5,2718.0,4.50496]
[1739953255420,3.6785,2718.5,2718.0,5.323377]
[1739953255730,3.6784,2718.6,2718.0,5.323377]
[1739953256027,6.67831,2718.7,2718.2,3.6789]
[1739953256231,6.67831,2718.7,2718.2,4.4505]
[1739953256529,3.67831,2718.7,2718.2,4.4505]
[1739953257428,3.67837,2718.6,2718.2,1.6664077]
[1739953257834,3.67837,2718.6,2718.2,0.7716]
[1739953258345,3.67823,2718.7,2718.2,4.45049]
[1739953259050,3.6784,2718.6,2718.2,0.7716]
[1739953259428,3.67825,2718.7,2718.2,0.7716]
[1739953259744,3.67809,2718.8,2718.2,0.7716]
[1739953259950,3.67844,2718.6,2718.2,0.7716]
[1739953261345,3.6785,2718.5,2718.2,0.7716]
[1739953261753,3.67849,2718.5,2718.2,0.7716]
[1739953264450,3.67829,2718.7,2718.2,4.45047]
[1739953264648,3.67829,2718.7,2718.2,0.7716]
[1739953265037,3.67852,2718.5,2718.2,0.7716]
[1739953265420,3.67873,2718.4,2717.8,9.03935]
[1739953265625,3.67873,2718.4,2717.9,0.7731]
[1739953266060,3.67856,2718.5,2717.9,4.45227]
[1739953266469,3.67844,2718.6,2718.1,3.67893]
[1739953267073,3.67818,2718.8,2718.1,3.67893]
[1739953267247,3.67842,2718.6,2718.2,0.7746]
[1739953267890,7.35665,2718.7,2718.2,0.7746]
[1739953268490,4.281118,2718.8,2718.2,0.7746]
[1739953268659,3.67852,2718.5,2718.2,0.7746]
[1739953268860,3.67871,2718.4,2718.2,0.7746]
[1739953269056,3.67871,2718.4,2717.9,0.8283]
[1739953269057,3.67878,2718.3,2717.9,0.8283]
[1739953269259,3.67912,2718.1,2717.6,0.8283]
[1739953269603,3.67918,2718.0,2717.6,0.8283]
[1739953269801,0.735723,2718.4,2717.6,4.508]
[1739953269977,4.414433,2718.4,2717.7,3.67958]
[1739953270173,0.735723,2718.4,2717.7,3.91423355]
[1739953270360,7.35799,2718.2,2717.7,3.91423355]
[1739953270761,3.67899,2718.2,2717.7,3.91423355]
[1739953271179,7.35799,2718.2,2717.7,3.91423355]
[1739953271380,3.67899,2718.2,2717.7,3.91423355]
[1739953271585,7.35801,2718.2,2717.7,3.91423355]
[1739953271795,3.67899,2718.2,2717.7,0.23465355]
[1739953272166,3.67899,2718.2,2717.8,0.23465355]
[1739953272669,4.414423,2718.4,2717.9,4.46588]
[1739953272868,3.0,2718.5,2718.0,3.67916]
[1739953273082,3.0,2718.5,2718.1,0.7601]
[1739953273511,6.67836,2718.6,2718.1,0.7601]
[1739953273711,3.0,2718.5,2718.1,0.7601]
[1739953273912,3.67866,2718.4,2718.1,0.7601]
[1739953274111,6.67854,2718.5,2718.1,0.7601]
[1739953274778,7.35684,2718.6,2718.1,0.7601]
[1739953274972,3.67852,2718.5,2718.1,0.7601]
[1739953275282,3.67849,2718.5,2718.1,0.7601]
[1739953275901,0.03,2718.2,2718.1,0.7601]
[1739953276290,3.67877,2718.3,2718.1,0.7601]
[1739953276491,3.6789,2718.2,2717.9,0.7601]
[1739953276815,3.67877,2718.3,2717.9,0.7601]
[1739953277230,7.35764,2718.3,2717.9,0.7601]
[1739953277533,3.67877,2718.3,2717.9,0.7601]
[1739953277701,7.35764,2718.3,2717.9,0.7601]
[1739953277905,4.43048,2718.5,2717.9,4.43934]
[1739953278124,3.6787,2718.4,2717.9,0.7601]
[1739953278417,3.67858,2718.5,2717.9,1.740047]
[1739953278623,3.67836,2718.6,2718.1,3.67903]
[1739953278818,3.67836,2718.6,2718.2,0.7777]
[1739953279024,0.03,2718.3,2718.2,0.7777]
[1739953279229,0.03,2718.3,2718.2,0.5777]
[1739953280101,3.67836,2718.6,2718.2,0.5777]
[1739953280299,4.790883,2718.6,2718.2,0.5777]
[1739953281334,3.67876,2718.3,2717.7,5.36]
[1739953281525,3.67876,2718.3,2717.7,9.03955]
[1739953282241,3.67876,2718.3,2717.8,0.7925]
[1739953282801,3.67864,2718.4,2717.9,3.67929]
[1739953283003,3.67878,2718.3,2717.8,0.7925]
[1739953283417,3.67878,2718.3,2717.9,0.23507555]
[1739953283617,3.67891,2718.2,2717.9,0.23507555]
[1739953283924,7.35767,2718.3,2717.9,0.23507555]
[1739953284297,7.35766,2718.3,2717.9,0.23507555]
[1739953284523,3.67878,2718.3,2717.9,0.23507555]
[1739953284726,7.35765,2718.3,2717.8,0.7925]
[1739953284940,3.67878,2718.3,2717.8,0.7925]
[1739953285440,7.35766,2718.3,2717.8,0.7925]
[1739953285649,3.67895,2718.2,2717.8,0.7925]
[1739953287746,3.67895,2718.2,2717.9,0.23504698]
[1739953289552,3.67911,2718.1,2717.8,0.7925]
[1739953290336,4.128185,2718.2,2717.8,0.7925]
[1739953291147,7.807165,2718.2,2717.8,0.7925]
[1739953291536,0.449275,2718.2,2717.8,0.7925]
[1739953291739,3.67905,2718.1,2717.8,0.7925]
[1739953292929,3.67905,2718.1,2717.9,0.23505694]
[1739953294534,3.67905,2718.1,2717.8,0.7925]
[1739953298372,3.67905,2718.1,2717.9,0.23506987]
[1739953299874,3.67905,2718.1,2717.8,0.7925]
[1739953303876,3.67898,2718.2,2717.9,0.23508501]
[1739953304178,4.496139,2718.2,2717.9,0.23508501]
[1739953304980,3.67906,2718.1,2717.9,0.23508501]
[1739953306185,3.67906,2718.1,2717.8,0.7925]
[1739953306778,4.496059,2718.2,2717.8,0.7925]
[1739953307081,3.6791,2718.1,2717.8,0.7925]
[1739953307896,0.817159,2718.2,2717.8,0.7925]
[1739953308401,3.67905,2718.1,2717.8,0.7925]
[1739953309497,3.67919,2718.0,2717.8,0.7925]
[1739953310087,3.67919,2718.0,2717.9,0.23510556]
[1739953310291,4.1288249,2718.0,2717.9,0.23510556]
[1739953311622,4.1588249,2718.0,2717.9,0.23510556]
[1739953315103,4.1588249,2718.0,2717.6,4.43928]
[1739953315304,3.70919,2718.0,2717.6,4.43928]
[1739953315506,0.03,2718.0,2717.6,4.43922]
[1739953316009,0.03,2718.0,2717.7,0.27400323]
[1739953317224,0.03,2718.0,2717.8,0.23524007]
[1739953317826,0.03,2718.0,2717.8,0.5092433]
[1739953318898,0.03,2718.0,2717.9,0.23524007]
[1739953321001,3.6791,2718.1,2717.9,0.23524007]
[1739953321203,3.67917,2718.0,2717.9,0.23524007]
[1739953322203,7.99467,2718.0,2717.9,0.23524007]
[1739953322913,3.67964,2717.7,2717.3,0.04]
[1739953324314,7.35929,2717.7,2717.3,0.04]
[1739953324520,3.67964,2717.7,2717.4,0.2352757]
[1739953325010,3.6798,2717.6,2717.4,0.2352757]
[1739953326223,3.6798,2717.6,2717.3,0.04]
[1739953327218,4.2120933,2717.9,2717.3,0.04]
[1739953327423,3.67966,2717.7,2717.3,0.04]
[1739953327585,3.67957,2717.8,2717.3,0.04]
[1739953327785,3.67973,2717.6,2717.3,0.04]
[1739953329641,4.16879633,2717.7,2717.3,0.04]
[1739953330819,0.03,2717.5,2717.3,0.04]
[1739953331655,3.67952,2717.8,2717.3,3.72009]
[1739953331946,3.67952,2717.8,2717.4,3.67995]
[1739953332236,4.96815333,2717.8,2717.4,3.67995]
[1739953332445,4.96815333,2717.8,2717.3,0.04]
[1739953333005,4.96815333,2717.8,2717.3,3.72005]
[1739953333632,4.96815333,2717.8,2717.3,3.7201]
[1739953334779,4.96815333,2717.8,2717.4,0.23443607]
[1739953335866,3.6796,2717.7,2717.4,0.23443607]
[1739953336042,3.6796,2717.7,2717.3,0.04]
[1739953336871,4.96815333,2717.8,2717.3,3.72011]
[1739953337285,4.96815333,2717.8,2717.3,0.04]
[1739953338082,4.96815333,2717.8,2717.3,3.72004]
[1739953338576,4.96815333,2717.8,2717.3,0.04]
[1739953338766,3.67959,2717.7,2717.3,0.04]
[1739953339178,4.54436433,2717.7,2717.3,0.04]
[1739953339383,4.44015,2717.6,2717.3,0.04]
[1739953339568,4.8920733,2717.4,2717.3,0.04]
[1739953339767,5.7213733,2717.4,2717.3,0.04]
[1739953339949,8.7213733,2717.4,2717.3,0.04]
[1739953340148,9.99149563,2717.4,2717.3,0.04]
[1739953340877,10.54149563,2717.4,2717.3,0.04]
[1739953342916,9.99149563,2717.4,2717.3,0.04]
[1739953343093,6.70998,2717.4,2717.3,0.04]
[1739953343516,6.67998,2717.4,2717.3,0.04]
[1739953343718,7.8920733,2717.4,2717.3,0.04]
[1739953346398,8.7392733,2717.4,2717.3,0.04]
[1739953346587,9.2892733,2717.4,2717.3,0.04]
[1739953346787,11.12418563,2717.4,2717.3,0.04]
[1739953352125,16.50418563,2717.4,2717.3,0.04]
[1739953357751,16.78037195,2717.4,2717.3,0.04]
[1739953363120,17.99246525,2717.4,2717.3,0.04]
[1739953363857,3.55,2717.3,2716.3,0.8123]
[1739953364060,3.68134,2716.4,2716.3,0.8123]
[1739953364363,3.68159,2716.3,2716.0,0.8123]
[1739953364526,7.36315,2716.3,2716.0,0.8123]
[1739953364727,3.68156,2716.3,2716.0,0.8123]
[1739953364942,3.68162,2716.2,2716.0,0.8123]
[1739953366153,3.68149,2716.3,2716.0,0.8123]
[1739953366856,4.8934533,2716.4,2716.0,0.8123]
[1739953367364,3.68148,2716.3,2716.0,0.8123]
[1739953367856,4.8934533,2716.4,2716.0,0.8123]
[1739953369070,3.68157,2716.3,2716.0,0.8123]
[1739953370788,4.8934533,2716.4,2716.0,0.8123]
[1739953371412,3.68136,2716.4,2716.0,0.8123]
[1739953373295,4.8934533,2716.4,2716.0,0.8123]
[1739953373866,1.2120933,2716.4,2716.0,4.49416]
[1739953374067,1.2120933,2716.4,2716.0,0.8123]
[1739953374282,4.8934433,2716.4,2716.0,0.8123]
[1739953374482,1.2120933,2716.4,2716.0,0.8123]
[1739953376401,4.8934533,2716.4,2716.0,0.8123]
[1739953377106,1.2120933,2716.4,2716.0,0.8123]
[1739953377697,4.8934833,2716.4,2716.0,0.8123]
[1739953378170,1.2120933,2716.4,2716.0,0.8123]
[1739953378370,3.68127,2716.5,2716.0,0.8123]
[1739953378566,5.38,2716.8,2716.1,0.816]
[1739953378795,5.7231733,2717.1,2716.4,0.816]
[1739953379100,4.8928133,2716.9,2716.5,0.816]
[1739953380639,3.68072,2716.9,2716.5,0.816]
[1739953382137,3.68081,2716.8,2716.5,0.816]
[1739953382553,3.68043,2717.1,2716.5,3.68111]
[1739953382738,3.68043,2717.1,2716.6,1.15129212]
[1739953382927,3.68043,2717.1,2716.7,0.7795]
[1739953383765,3.6802,2717.3,2716.8,0.8177]
[1739953384063,3.6802,2717.3,2717.0,0.8279]
[1739953384428,3.67964,2717.7,2717.1,0.8279]
[1739953384629,3.67964,2717.7,2717.1,0.86470165]
[1739953384931,9.89288032,2718.0,2717.2,0.8284]
[1739953385247,3.68012,2717.3,2717.2,0.8284]
[1739953386651,3.68038,2717.2,2716.8,0.7509]
[1739953387345,3.67991,2717.5,2716.8,0.7509]
[1739953387647,3.67991,2717.5,2717.0,0.7509]
[1739953388475,3.68025,2717.3,2717.0,0.7509]
[1739953388774,3.68039,2717.1,2717.0,0.7509]
[1739953388971,0.8241,2717.6,2717.0,0.7509]
[1739953389115,3.68026,2717.2,2717.0,0.7509]
[1739953389316,3.68039,2717.1,2717.0,0.7509]
[1739953393182,3.68082,2716.8,2716.6,0.8141]
[1739953395679,3.68093,2716.7,2716.6,0.8141]
[1739953395839,3.68082,2716.8,2715.8,9.08348102]
[1739953395840,3.6812,2716.5,2716.4,0.791]
[1739953396040,3.6816,2716.3,2716.2,0.791]
[1739953396539,3.68187,2716.1,2715.6,0.791]
[1739953396744,3.68183,2716.1,2715.6,0.791]
[1739953397141,3.68183,2716.1,2715.6,3.68237]
[1739953397475,3.68183,2716.1,2715.9,0.74493747]
[1739953397698,3.68183,2716.1,2715.7,1.94765847]
[1739953398158,3.68183,2716.1,2715.8,0.75036713]
[1739953398357,7.36367,2716.1,2715.8,0.75036713]
[1739953398690,3.68183,2716.1,2715.8,0.75036713]
[1739953398871,3.68183,2716.1,2715.7,1.713037]
[1739953399057,3.68183,2716.1,2715.7,0.8088]
[1739953399243,3.68183,2716.1,2715.7,1.5429318]
[1739953399444,3.6819,2716.0,2715.7,1.5429318]
[1739953400073,3.68183,2716.1,2715.7,1.5429318]
[1739953400386,3.68188,2716.0,2715.7,1.5429318]
[1739953400868,3.68183,2716.1,2715.7,1.5429318]
[1739953401067,3.68189,2716.0,2715.7,1.5429318]
[1739953402651,3.68203,2715.9,2715.7,1.5429318]
[1739953403050,3.68203,2715.9,2715.7,0.8088]
[1739953403245,3.68215,2715.8,2715.7,0.8088]
[1739953403756,3.68242,2715.6,2715.5,0.8033]
[1739953411797,3.68229,2715.7,2715.2,1.54224189]
[1739953412005,3.68282,2715.4,2715.2,0.7973]
[1739953412498,3.68283,2715.3,2715.2,0.7973]
[1739953414079,3.68331,2715.0,2714.8,0.8328]
[1739953414493,3.68306,2715.2,2714.8,0.8328]
[1739953414891,7.3656,2715.4,2714.8,0.8328]
[1739953415205,3.68283,2715.3,2714.9,0.753]
[1739953417214,3.68273,2715.4,2714.9,4.43637]
[1739953417518,0.55,2716.1,2715.1,0.7557]
[1739953417519,3.68251,2715.6,2715.1,0.7557]
[1739953418007,3.6823,2715.7,2715.2,4.48256]
[1739953418721,3.6821,2715.9,2715.2,0.7996]
[1739953419010,4.44903,2716.3,2715.3,3.68273]
[1739953419193,3.68177,2716.1,2715.7,0.7797]
[1739953419807,3.68153,2716.3,2715.7,4.46196]
[1739953420381,3.68153,2716.3,2715.8,0.0368171]
[1739953420582,3.68153,2716.3,2715.7,4.46196]
[1739953420780,7.3631,2716.3,2715.7,4.46196]
[1739953420982,3.68162,2716.2,2715.7,5.34869442]
[1739953422094,3.68162,2716.2,2715.7,1.66643442]
[1739953422495,3.68162,2716.2,2715.7,5.34866442]
[1739953422699,3.68141,2716.4,2715.9,3.68193]
[1739953423004,3.68141,2716.4,2716.0,0.8109]
[1739953423409,3.68149,2716.3,2716.0,0.8109]
[1739953423607,3.68141,2716.4,2716.0,0.8109]
[1739953423808,3.68161,2716.2,2716.0,0.8109]
[1739953424389,3.68174,2716.1,2716.0,0.8109]
[1739953424986,7.36331,2716.2,2716.0,0.8109]
[1739953425724,3.68174,2716.1,2716.0,0.8109]
[1739953426023,3.682,2716.0,2715.7,0.7831]
[1739953426220,3.68212,2715.9,2715.7,0.7831]
[1739953426718,3.68182,2716.1,2715.7,0.7831]
[1739953427123,3.68182,2716.1,2715.7,1.30193842]
[1739953427696,3.68196,2716.0,2715.7,0.7831]
[1739953428227,3.68182,2716.1,2715.7,0.7831]
[1739953428633,3.68189,2716.0,2715.7,0.7831]
[1739953428931,3.68182,2716.1,2715.7,0.7831]
[1739953429092,7.36369,2716.1,2715.7,0.7831]
[1739953429297,3.6819,2716.0,2715.7,0.7831]
[1739953432405,3.68215,2715.8,2715.7,0.7831]
[1739953434157,3.68215,2715.8,2715.5,1.5603864]
[1739953435351,3.68237,2715.7,2715.5,1.5603864]
[1739953435518,3.68229,2715.7,2715.5,1.5603864]
[1739953436550,3.68215,2715.8,2715.5,1.5603864]
[1739953436754,3.68238,2715.7,2715.5,1.5603864]
[1739953437351,3.68256,2715.5,2715.4,5.36]
[1739953438053,3.68242,2715.6,2715.4,5.36]
[1739953438350,3.68242,2715.6,2715.2,1.53933216]
[1739953438854,7.3645,2715.8,2715.2,5.22226216]
[1739953439040,3.68236,2715.7,2715.2,5.22226216]
[1739953439853,3.68209,2715.9,2715.4,0.7857]
[1739953440037,3.68188,2716.0,2715.6,0.7857]
[1739953441533,3.68171,2716.2,2715.7,4.45841]
[1739953442018,3.68171,2716.2,2715.6,3.68229]
[1739953442019,9.06116,2716.6,2715.9,3.68202]
[1739953442359,4.6340042,2716.6,2716.0,0.7568]
[1739953442555,3.68129,2716.5,2716.0,0.7568]
[1739953443021,4.6340042,2716.6,2716.0,0.7568]
[1739953443022,3.68142,2716.4,2716.0,0.7568]
[1739953444118,4.6339842,2716.6,2716.0,0.7568]
[1739953444323,3.6812,2716.5,2716.0,4.43866]
[1739953444550,8.3151442,2716.6,2716.0,4.43866]
[1739953445059,4.6339842,2716.6,2716.0,4.43866]
[1739953445361,7.03815032,2716.8,2716.2,3.68159]
[1739953445362,3.78002,2716.8,2716.2,3.68159]
[1739953445765,3.78002,2716.8,2716.1,0.03681267]
[1739953445766,3.681,2716.7,2716.1,3.71853267]
[1739953445928,3.681,2716.7,2716.1,3.68172]
[1739953446457,3.78002,2716.8,2716.1,3.68172]
[1739953446649,3.68109,2716.6,2716.1,3.68172]
[1739953446956,3.78002,2716.8,2716.2,3.68159]
[1739953447161,3.78002,2716.8,2716.1,3.68173]
[1739953447460,3.68098,2716.7,2716.1,3.68173]
[1739953447760,3.68098,2716.7,2716.2,0.23476252]
[1739953447962,3.78002,2716.8,2716.2,0.23476252]
[1739953448130,7.46092,2716.8,2716.2,3.95311408]
[1739953448334,7.46092,2716.8,2716.2,3.91630252]
[1739953448746,3.78002,2716.8,2716.2,3.91630252]
[1739953448946,3.78002,2716.8,2716.3,0.8278]
[1739953449561,3.78002,2716.8,2716.3,4.50927]
[1739953449768,3.78002,2716.8,2716.3,1.56009584]
[1739953449966,0.0992,2716.8,2716.4,3.7180816]
[1739953451470,0.0992,2716.8,2716.4,0.0368116]
[1739953451668,0.0992,2716.8,2716.7,4.43183]
[1739953451988,0.0992,2716.8,2716.7,5.243124]
[1739953454609,0.0992,2716.8,2716.7,5.47741383]
[1739953455106,0.0992,2716.8,2716.7,10.83741383]
[1739953455790,0.0992,2716.8,2716.7,11.11088175]
[1739953457077,0.0992,2716.8,2716.7,10.83741383]
[1739953457258,0.0992,2716.8,2716.7,10.603124]
[1739953463017,0.0992,2716.8,2716.7,10.87597442]
[1739953463215,0.0992,2716.8,2716.7,10.77757442]
[1739953463523,0.0992,2716.8,2716.7,11.01118785]
[1739953469286,0.0992,2716.8,2716.7,10.73833743]
[1739953469930,0.0992,2716.8,2716.7,7.05740743]
[1739953470133,0.0992,2716.8,2716.7,6.823794]
[1739953470600,0.0992,2716.8,2716.7,10.504724]
[1739953470805,0.0992,2716.8,2716.7,9.69343]
[1739953471131,0.0992,2716.8,2716.7,3.68093]
[1739953471426,0.0992,2716.8,2716.5,13.51719]
[1739953471634,0.0992,2716.8,2716.5,13.51713]
[1739953472040,0.0992,2716.8,2716.5,9.0411]
[1739953472333,0.8785,2716.8,2716.5,9.0411]
[1739953473445,0.0992,2716.8,2716.6,3.68098]
[1739953474293,0.0992,2716.8,2716.7,3.68093]
[1739953474616,0.0992,2716.8,2716.7,4.51543557]
[1739953475938,0.0992,2716.8,2716.7,4.78924577]
[1739953476642,0.0992,2716.8,2716.7,4.73924577]
[1739953476849,0.0992,2716.8,2716.7,9.42076135]
[1739953477054,0.7618,2717.8,2717.4,3.67989]
[1739953477249,4.44098,2718.0,2717.5,3.67983]
[1739953477899,0.7618,2718.0,2717.5,3.67983]
[1739953479010,0.7618,2718.0,2717.5,3.67976]
[1739953479240,5.253022,2718.0,2717.4,4.48577]
[1739953479442,5.253022,2718.0,2717.5,3.67982]
[1739953479758,5.253022,2718.0,2717.4,0.8058]
[1739953479759,8.932282,2718.0,2717.4,0.8058]
[1739953479900,3.67953,2717.8,2717.2,4.11825129]
[1739953480115,3.67953,2717.8,2717.3,3.68009]
[1739953480507,0.8122,2718.2,2717.3,6.21706413]
[1739953480704,0.8122,2719.0,2718.2,0.7711]
[1739953480956,0.8122,2719.0,2718.5,3.67839]
[1739953481171,0.28190704,2719.1,2718.7,3.67818]
[1739953481459,0.28190704,2719.1,2718.9,3.67787]
[1739953481611,0.7519,2719.3,2718.9,3.67787]
[1739953482664,1.12709,2719.3,2718.9,3.67787]
[1739953482814,1.12709,2719.3,2718.7,3.67812]
[1739953483015,1.12709,2719.3,2718.8,3.67805]
[1739953484613,0.7519,2719.3,2719.0,3.67781]
[1739953484848,0.7519,2719.3,2718.8,4.50858]
[1739953485052,0.7519,2719.3,2718.6,4.41295666]
[1739953485214,0.7519,2719.3,2718.6,8.09122666]
[1739953485414,0.7519,2719.3,2718.7,3.67821]
[1739953485647,0.7519,2719.3,2718.8,3.67806]
[1739953486461,0.8287,2719.6,2719.0,3.67769]
[1739953486811,3.8287,2719.6,2719.0,3.67769]
[1739953487373,3.8287,2719.6,2719.1,3.67766]
[1739953487657,3.8287,2719.6,2719.0,3.67769]
[1739953487862,4.50573,2719.6,2719.0,3.67769]
[1739953488209,3.8287,2719.6,2719.1,3.67768]
[1739953488613,3.8287,2719.6,2719.2,3.67752]
[1739953488881,3.8287,2719.6,2719.0,3.67769]
[1739953489636,3.8287,2719.6,2719.3,3.67737]
[1739953490218,3.8287,2719.6,2719.1,3.67759]
[1739953490617,3.8287,2719.6,2719.1,7.35516]
[1739953490918,3.8287,2719.6,2719.1,7.35517]
[1739953491119,3.8287,2719.6,2719.1,3.67757]
[1739953492488,3.8287,2719.6,2719.1,4.40137011]
[1739953492794,0.8287,2719.6,2719.1,4.40137011]
[1739953492976,0.8287,2719.6,2719.1,4.91867712]
[1739953493478,0.8287,2719.6,2719.1,4.40137011]